[Event "Early-Titled-Tuesday-Blitz-March-19-2024"]
[Site "Chess.com"]
[Date "2024.03.19"]
[Round "8"]
[White "vladgoncharov"]
[Black "emeli_chess"]
[Result "1-0"]
[WhiteElo "2607"]
[BlackElo "2422"]
[TimeControl "180+1"]
[EndTime "9:30:07 PDT"]
[Termination "vladgoncharov won on time"]

1. d4 {[%clk 0:03:00.9]} 1... Nf6 {[%clk 0:02:59.6]} 2. c4 {[%clk 0:02:59.9]}
2... e6 {[%clk 0:02:59.8]} 3. Nf3 {[%clk 0:02:58.8]} 3... d5 {[%clk 0:02:59.7]}
4. Nc3 {[%clk 0:02:57.9]} 4... Bb4 {[%clk 0:02:59]} 5. Qa4+ {[%clk 0:02:55.5]}
5... Nc6 {[%clk 0:02:58.7]} 6. e3 {[%clk 0:02:43.6]} 6... O-O {[%clk 0:02:56.5]}
7. Bd2 {[%clk 0:02:43]} 7... dxc4 {[%clk 0:02:51.1]} 8. Bxc4 {[%clk 0:02:41]}
8... Bd6 {[%clk 0:02:49.8]} 9. Rd1 {[%clk 0:02:30.1]} 9... e5 {[%clk 0:02:44.1]}
10. d5 {[%clk 0:02:29.3]} 10... Ne7 {[%clk 0:02:43.3]} 11. e4 {[%clk 0:02:28.7]}
11... a6 {[%clk 0:02:41.1]} 12. O-O {[%clk 0:02:21.5]} 12... Ng6 {[%clk
0:02:36.2]} 13. Be2 {[%clk 0:02:18.1]} 13... h6 {[%clk 0:02:33]} 14. Rfe1 {[%clk
0:02:16.9]} 14... Nh7 {[%clk 0:02:32.5]} 15. Qc2 {[%clk 0:02:07.9]} 15... Ng5
{[%clk 0:02:21.4]} 16. Nxg5 {[%clk 0:02:01.7]} 16... hxg5 {[%clk 0:02:21.3]} 17.
g3 {[%clk 0:02:01.9]} 17... f6 {[%clk 0:01:56.6]} 18. Be3 {[%clk 0:01:56.2]}
18... Kf7 {[%clk 0:01:54.6]} 19. Na4 {[%clk 0:01:37.6]} 19... Rh8 {[%clk
0:01:53.7]} 20. Nc5 {[%clk 0:01:36]} 20... Qe7 {[%clk 0:01:37.9]} 21. Ne6 {[%clk
0:01:30.3]} 21... Bxe6 {[%clk 0:01:35.8]} 22. dxe6+ {[%clk 0:01:30.1]} 22... Kg8
{[%clk 0:01:35.4]} 23. Qb3 {[%clk 0:01:20.3]} 23... b5 {[%clk 0:01:28]} 24. Bg4
{[%clk 0:01:16.8]} 24... Re8 {[%clk 0:01:15]} 25. Qd5 {[%clk 0:01:16.1]} 25...
Nf8 {[%clk 0:01:08.7]} 26. Rc1 {[%clk 0:01:10.7]} 26... Nxe6 {[%clk 0:01:07.6]}
27. Rc6 {[%clk 0:01:10.1]} 27... Qf7 {[%clk 0:01:04.8]} 28. Rxa6 {[%clk
0:01:05]} 28... Nd4 {[%clk 0:00:53.3]} 29. Bxd4 {[%clk 0:01:04.7]} 29... exd4
{[%clk 0:00:45.4]} 30. Qxd4 {[%clk 0:00:52.7]} 30... Qc4 {[%clk 0:00:37.3]} 31.
Qxc4+ {[%clk 0:00:37.9]} 31... bxc4 {[%clk 0:00:37.2]} 32. Rc6 {[%clk 0:00:38]}
32... Rb8 {[%clk 0:00:31.7]} 33. Re2 {[%clk 0:00:37.4]} 33... Kh7 {[%clk
0:00:27.5]} 34. Bf5+ {[%clk 0:00:31.7]} 34... g6 {[%clk 0:00:27]} 35. Be6 {[%clk
0:00:31.7]} 35... c3 {[%clk 0:00:14.2]} 36. Rxc3 {[%clk 0:00:29.7]} 36... Be5
{[%clk 0:00:14]} 37. Rcc2 {[%clk 0:00:23.2]} 37... Rhd8 {[%clk 0:00:13.1]} 38.
Bd5 {[%clk 0:00:23.2]} 38... Rb4 {[%clk 0:00:11.3]} 39. b3 {[%clk 0:00:21.4]}
39... Kh6 {[%clk 0:00:06]} 40. h3 {[%clk 0:00:21.1]} 40... Rd6 {[%clk
0:00:03.9]} 41. Kg2 {[%clk 0:00:20.5]} 41... Ra6 {[%clk 0:00:03.6]} 42. a4
{[%clk 0:00:19.5]} 42... c6 {[%clk 0:00:03.6]} 43. Be6 {[%clk 0:00:14.8]} 43...
Rab6 {[%clk 0:00:02.8]} 44. Red2 {[%clk 0:00:14.6]} 44... Rxe4 {[%clk
0:00:01.9]} 45. Bc4 {[%clk 0:00:11.6]} 45... Rd4 {[%clk 0:00:01.8]} 46. Rxd4
{[%clk 0:00:10.6]} 46... Bxd4 {[%clk 0:00:02.7]} 47. Rd2 {[%clk 0:00:10.4]}
47... c5 {[%clk 0:00:02.5]} 48. Re2 {[%clk 0:00:10.7]} 48... f5 {[%clk
0:00:01.8]} 49. a5 {[%clk 0:00:11.1]} 49... Rb7 {[%clk 0:00:01.2]} 50. a6 {[%clk
0:00:11.3]} 50... Ra7 {[%clk 0:00:01.6]} 51. Re6 {[%clk 0:00:11.2]} 51... g4
{[%clk 0:00:01.6]} 52. hxg4 {[%clk 0:00:10.6]} 52... fxg4 {[%clk 0:00:02.5]} 53.
f4 {[%clk 0:00:09.9]} 53... gxf3+ {[%clk 0:00:02.2]} 54. Kxf3 {[%clk 0:00:10.4]}
54... Kg7 {[%clk 0:00:02.6]} 55. Ke4 {[%clk 0:00:10.6]} 55... Kf7 {[%clk
0:00:01.5]} 56. Rb6+ {[%clk 0:00:09.3]} 56... Ke7 {[%clk 0:00:01.6]} 57. Rb7+
{[%clk 0:00:09.8]} 57... Rxb7 {[%clk 0:00:01.5]} 58. axb7 {[%clk 0:00:10.7]} 1-0

[Event "Early-Titled-Tuesday-Blitz-March-19-2024"]
[Site "Chess.com"]
[Date "2024.03.19"]
[Round "8"]
[White "ChempionBg"]
[Black "AlanZhang"]
[Result "0-1"]
[WhiteElo "2352"]
[BlackElo "2243"]
[TimeControl "180+1"]
[EndTime "9:30:08 PDT"]
[Termination "AlanZhang won on time"]

1. d4 {[%clk 0:02:46]} 1... Nf6 {[%clk 0:02:59]} 2. c4 {[%clk 0:02:43.5]} 2...
e6 {[%clk 0:02:59.1]} 3. Nf3 {[%clk 0:02:43.1]} 3... d5 {[%clk 0:02:59.3]} 4. g3
{[%clk 0:02:43.1]} 4... dxc4 {[%clk 0:02:59.1]} 5. Bg2 {[%clk 0:02:43.4]} 5...
b5 {[%clk 0:02:56.6]} 6. Ne5 {[%clk 0:02:41.1]} 6... c6 {[%clk 0:02:56.2]} 7.
Nxc6 {[%clk 0:02:38.8]} 7... Qb6 {[%clk 0:02:56]} 8. Nxb8 {[%clk 0:02:20.6]}
8... Rxb8 {[%clk 0:02:56.9]} 9. Bf4 {[%clk 0:02:19.3]} 9... Bd6 {[%clk
0:02:46.6]} 10. Bxd6 {[%clk 0:02:11.8]} 10... Qxd6 {[%clk 0:02:47.5]} 11. O-O
{[%clk 0:02:10]} 11... O-O {[%clk 0:02:45]} 12. e4 {[%clk 0:02:08.4]} 12... e5
{[%clk 0:02:19.3]} 13. d5 {[%clk 0:02:03.4]} 13... Rd8 {[%clk 0:02:13.3]} 14.
Nc3 {[%clk 0:02:01.7]} 14... b4 {[%clk 0:02:11.2]} 15. Ne2 {[%clk 0:02:00.6]}
15... a5 {[%clk 0:02:03.9]} 16. Rc1 {[%clk 0:01:58.5]} 16... Ba6 {[%clk
0:02:01.7]} 17. Re1 {[%clk 0:01:55.7]} 17... Bb5 {[%clk 0:01:54.1]} 18. Qd2
{[%clk 0:01:54.4]} 18... a4 {[%clk 0:01:52.2]} 19. Qg5 {[%clk 0:01:44.3]} 19...
h6 {[%clk 0:01:45.5]} 20. Qe3 {[%clk 0:01:41.5]} 20... Rdc8 {[%clk 0:01:30.9]}
21. f4 {[%clk 0:01:35]} 21... Nd7 {[%clk 0:01:28.8]} 22. Bh3 {[%clk 0:01:32.2]}
22... Rc7 {[%clk 0:01:28.4]} 23. Bxd7 {[%clk 0:01:22.8]} 23... Bxd7 {[%clk
0:01:26.7]} 24. fxe5 {[%clk 0:01:23]} 24... Qxe5 {[%clk 0:01:27.3]} 25. Qf4
{[%clk 0:01:19.2]} 25... Re8 {[%clk 0:01:16.6]} 26. Qxe5 {[%clk 0:01:14.3]}
26... Rxe5 {[%clk 0:01:17.5]} 27. Nd4 {[%clk 0:01:14.4]} 27... Rc5 {[%clk
0:01:04.4]} 28. Nc2 {[%clk 0:01:02.3]} 28... b3 {[%clk 0:00:56.1]} 29. axb3
{[%clk 0:01:01.9]} 29... cxb3 {[%clk 0:00:55.5]} 30. Nb4 {[%clk 0:00:54]} 30...
Rxc1 {[%clk 0:00:49.4]} 31. Rxc1 {[%clk 0:00:53.1]} 31... Rxe4 {[%clk
0:00:49.8]} 32. Nd3 {[%clk 0:00:51.7]} 32... Rd4 {[%clk 0:00:46.9]} 33. Nc5
{[%clk 0:00:43.6]} 33... Rxd5 {[%clk 0:00:39.9]} 34. Nxd7 {[%clk 0:00:43.2]}
34... Rxd7 {[%clk 0:00:40.8]} 35. Rc8+ {[%clk 0:00:42.8]} 35... Kh7 {[%clk
0:00:39.9]} 36. Ra8 {[%clk 0:00:43.4]} 36... Rd2 {[%clk 0:00:31.1]} 37. Rxa4
{[%clk 0:00:41.2]} 37... Rxb2 {[%clk 0:00:31.5]} 38. Rb4 {[%clk 0:00:41.5]}
38... Kg6 {[%clk 0:00:26.6]} 39. Rb5 {[%clk 0:00:40.1]} 39... Kf6 {[%clk
0:00:26]} 40. h4 {[%clk 0:00:37.6]} 40... g5 {[%clk 0:00:25.3]} 41. h5 {[%clk
0:00:36]} 41... Kg7 {[%clk 0:00:24]} 42. Rb6 {[%clk 0:00:34.3]} 42... f6 {[%clk
0:00:20]} 43. Rb7+ {[%clk 0:00:32.3]} 43... Kf8 {[%clk 0:00:20.1]} 44. Kf1
{[%clk 0:00:22.1]} 44... Ke8 {[%clk 0:00:17.3]} 45. Ke1 {[%clk 0:00:21.3]} 45...
Kd8 {[%clk 0:00:12.3]} 46. Kd1 {[%clk 0:00:21.4]} 46... Kc8 {[%clk 0:00:12.5]}
47. Rb6 {[%clk 0:00:18.5]} 47... Kc7 {[%clk 0:00:10.7]} 48. Rxf6 {[%clk
0:00:16.7]} 48... Rh2 {[%clk 0:00:08.7]} 49. Kc1 {[%clk 0:00:12.5]} 49... Rxh5
{[%clk 0:00:07.1]} 50. Kb2 {[%clk 0:00:12.1]} 50... Rh3 {[%clk 0:00:03.6]} 51.
Rf3 {[%clk 0:00:07.5]} 51... g4 {[%clk 0:00:03]} 52. Rc3+ {[%clk 0:00:03.4]}
52... Kd6 {[%clk 0:00:02.6]} 53. Kxb3 {[%clk 0:00:03.5]} 53... h5 {[%clk
0:00:02.3]} 54. Kc4 {[%clk 0:00:02.9]} 54... Ke5 {[%clk 0:00:02.8]} 55. Re3+
{[%clk 0:00:01.8]} 55... Kf5 {[%clk 0:00:02.9]} 56. Kd5 {[%clk 0:00:01.2]} 56...
h4 {[%clk 0:00:03.3]} 0-1

[Event "Early-Titled-Tuesday-Blitz-March-19-2024"]
[Site "Chess.com"]
[Date "2024.03.19"]
[Round "8"]
[White "Navyblue1"]
[Black "Zampronha1971"]
[Result "1-0"]
[WhiteElo "2228"]
[BlackElo "2299"]
[TimeControl "180+1"]
[EndTime "9:30:21 PDT"]
[Termination "Navyblue1 won on time"]

1. d4 {[%clk 0:03:00.9]} 1... Nf6 {[%clk 0:02:59.4]} 2. c4 {[%clk 0:02:59.9]}
2... e6 {[%clk 0:03:00]} 3. Nf3 {[%clk 0:02:58.9]} 3... b6 {[%clk 0:02:59.2]} 4.
g3 {[%clk 0:02:56.5]} 4... Ba6 {[%clk 0:02:58.5]} 5. Nbd2 {[%clk 0:02:54.8]}
5... Bb7 {[%clk 0:02:54]} 6. Bg2 {[%clk 0:02:54.1]} 6... Be7 {[%clk 0:02:54.1]}
7. O-O {[%clk 0:02:53.8]} 7... O-O {[%clk 0:02:54.3]} 8. Re1 {[%clk 0:02:50.8]}
8... d5 {[%clk 0:02:53.8]} 9. Ne5 {[%clk 0:02:44.8]} 9... Nfd7 {[%clk
0:02:44.1]} 10. Nxd7 {[%clk 0:02:27]} 10... Qxd7 {[%clk 0:02:35.5]} 11. e4
{[%clk 0:02:25.2]} 11... c6 {[%clk 0:02:34.2]} 12. b3 {[%clk 0:02:12]} 12... Na6
{[%clk 0:02:32.9]} 13. Bb2 {[%clk 0:02:11.6]} 13... Nb4 {[%clk 0:02:31.9]} 14.
Nf1 {[%clk 0:02:04.1]} 14... Rfd8 {[%clk 0:02:28.4]} 15. a3 {[%clk 0:01:57.7]}
15... Na6 {[%clk 0:02:29]} 16. Ne3 {[%clk 0:01:56.9]} 16... Nc7 {[%clk
0:02:27.4]} 17. e5 {[%clk 0:01:51.2]} 17... Rac8 {[%clk 0:02:21.7]} 18. Qg4
{[%clk 0:01:45.1]} 18... Kh8 {[%clk 0:02:19.9]} 19. Red1 {[%clk 0:01:18.7]}
19... Qe8 {[%clk 0:02:13.7]} 20. cxd5 {[%clk 0:00:42.8]} 20... cxd5 {[%clk
0:02:08.9]} 21. Rac1 {[%clk 0:00:40.6]} 21... Ba6 {[%clk 0:02:05.7]} 22. Bf1
{[%clk 0:00:35.6]} 22... Bxf1 {[%clk 0:02:03.5]} 23. Rxf1 {[%clk 0:00:35.5]}
23... Nb5 {[%clk 0:02:03.8]} 24. a4 {[%clk 0:00:34.1]} 24... Nc7 {[%clk
0:01:52.4]} 25. Qe2 {[%clk 0:00:33.5]} 25... Na8 {[%clk 0:01:47]} 26. Qd3 {[%clk
0:00:29.3]} 26... Qd7 {[%clk 0:01:43.7]} 27. Kg2 {[%clk 0:00:27.3]} 27... Qb7
{[%clk 0:01:39.2]} 28. h4 {[%clk 0:00:20.1]} 28... a6 {[%clk 0:01:31.4]} 29. Rh1
{[%clk 0:00:20]} 29... b5 {[%clk 0:01:30.8]} 30. a5 {[%clk 0:00:19.6]} 30... b4
{[%clk 0:01:26.3]} 31. h5 {[%clk 0:00:19.8]} 31... h6 {[%clk 0:01:25.6]} 32.
Rhg1 {[%clk 0:00:16.9]} 32... Nc7 {[%clk 0:01:23.3]} 33. Rc2 {[%clk 0:00:16]}
33... Nb5 {[%clk 0:01:23.3]} 34. Rgc1 {[%clk 0:00:16.4]} 34... Rxc2 {[%clk
0:01:22.6]} 35. Rxc2 {[%clk 0:00:16.5]} 35... Rc8 {[%clk 0:01:22.1]} 36. Qd1
{[%clk 0:00:16.7]} 36... Rxc2 {[%clk 0:01:19.7]} 37. Qxc2 {[%clk 0:00:17.6]}
37... Qc7 {[%clk 0:01:18.1]} 38. Qxc7 {[%clk 0:00:17.3]} 38... Nxc7 {[%clk
0:01:19]} 39. Nc2 {[%clk 0:00:17.5]} 39... Nb5 {[%clk 0:01:18.9]} 40. Kf3 {[%clk
0:00:17.6]} 40... Kg8 {[%clk 0:01:17.8]} 41. Ke2 {[%clk 0:00:18]} 41... Kf8
{[%clk 0:01:17.8]} 42. Kd3 {[%clk 0:00:18.4]} 42... Ke8 {[%clk 0:01:18]} 43. Bc1
{[%clk 0:00:18.6]} 43... Bd8 {[%clk 0:01:05]} 44. Nxb4 {[%clk 0:00:17.4]} 44...
Bxa5 {[%clk 0:01:05.6]} 45. Nc2 {[%clk 0:00:17.4]} 45... Bb6 {[%clk 0:01:03.6]}
46. b4 {[%clk 0:00:17.1]} 46... Kd7 {[%clk 0:01:00.2]} 47. Bd2 {[%clk
0:00:17.3]} 47... Kc6 {[%clk 0:01:00.1]} 48. Be1 {[%clk 0:00:17]} 48... Nc7
{[%clk 0:00:58.9]} 49. g4 {[%clk 0:00:16.7]} 49... Kb5 {[%clk 0:00:57.5]} 50.
Kc3 {[%clk 0:00:15.5]} 50... Ka4 {[%clk 0:00:57.4]} 51. Bd2 {[%clk 0:00:15.2]}
51... Nb5+ {[%clk 0:00:57.9]} 52. Kd3 {[%clk 0:00:15.3]} 52... Kb3 {[%clk
0:00:57.6]} 53. Be1 {[%clk 0:00:15.3]} 53... Bd8 {[%clk 0:00:52.3]} 54. Bd2
{[%clk 0:00:15.3]} 54... Be7 {[%clk 0:00:50.5]} 55. f3 {[%clk 0:00:15.3]} 55...
Na3 {[%clk 0:00:48.6]} 56. Na1+ {[%clk 0:00:14.2]} 56... Ka4 {[%clk 0:00:42.6]}
57. f4 {[%clk 0:00:11.7]} 57... Bxb4 {[%clk 0:00:41.7]} 58. g5 {[%clk
0:00:11.7]} 58... Bxd2 {[%clk 0:00:40.8]} 59. Kxd2 {[%clk 0:00:11.9]} 59... Kb4
{[%clk 0:00:32.5]} 60. Kd3 {[%clk 0:00:10.5]} 60... a5 {[%clk 0:00:14.5]} 61.
Nc2+ {[%clk 0:00:05.7]} 61... Nxc2 {[%clk 0:00:13.9]} 62. Kxc2 {[%clk
0:00:06.6]} 62... Kc4 {[%clk 0:00:14.4]} 63. f5 {[%clk 0:00:05.6]} 63... exf5
{[%clk 0:00:13.4]} 64. g6 {[%clk 0:00:06]} 64... fxg6 {[%clk 0:00:05.6]} 65. e6
{[%clk 0:00:06.3]} 1-0

[Event "Early-Titled-Tuesday-Blitz-March-19-2024"]
[Site "Chess.com"]
[Date "2024.03.19"]
[Round "8"]
[White "malakismayil"]
[Black "LeRoidesChampions"]
[Result "1-0"]
[WhiteElo "2542"]
[BlackElo "2653"]
[TimeControl "180+1"]
[EndTime "9:30:22 PDT"]
[Termination "malakismayil won by checkmate"]

1. e4 {[%clk 0:03:00.9]} 1... c5 {[%clk 0:02:52.9]} 2. Nf3 {[%clk 0:03:00.2]}
2... e6 {[%clk 0:02:53.6]} 3. c3 {[%clk 0:03:00]} 3... Nf6 {[%clk 0:02:52.8]} 4.
e5 {[%clk 0:02:59.7]} 4... Nd5 {[%clk 0:02:53.4]} 5. g3 {[%clk 0:03:00.1]} 5...
Nc6 {[%clk 0:02:50.8]} 6. Bg2 {[%clk 0:03:00.2]} 6... d6 {[%clk 0:02:51.5]} 7.
exd6 {[%clk 0:03:01.1]} 7... Qxd6 {[%clk 0:02:50.9]} 8. O-O {[%clk 0:03:02]}
8... Be7 {[%clk 0:02:51.3]} 9. d4 {[%clk 0:03:02.5]} 9... cxd4 {[%clk
0:02:51.1]} 10. cxd4 {[%clk 0:03:03.4]} 10... O-O {[%clk 0:02:50.8]} 11. Nc3
{[%clk 0:03:04]} 11... Rd8 {[%clk 0:02:45]} 12. Bg5 {[%clk 0:02:26.5]} 12... h6
{[%clk 0:02:32.5]} 13. Be3 {[%clk 0:02:14.2]} 13... Bd7 {[%clk 0:02:08.2]} 14.
a3 {[%clk 0:02:03.3]} 14... Nxc3 {[%clk 0:02:00]} 15. bxc3 {[%clk 0:02:04.2]}
15... Bf6 {[%clk 0:01:59.8]} 16. Bf4 {[%clk 0:01:56.2]} 16... Qe7 {[%clk
0:01:59.7]} 17. Re1 {[%clk 0:01:53.7]} 17... Qf8 {[%clk 0:01:46.9]} 18. Rb1
{[%clk 0:01:51.5]} 18... Qxa3 {[%clk 0:01:44.8]} 19. c4 {[%clk 0:01:25.5]} 19...
Nxd4 {[%clk 0:01:34.5]} 20. Nxd4 {[%clk 0:01:21.4]} 20... Ba4 {[%clk 0:01:34.7]}
21. Qf3 {[%clk 0:01:19]} 21... Qc5 {[%clk 0:01:20.3]} 22. Nb5 {[%clk 0:00:49.5]}
22... Qxc4 {[%clk 0:01:14.1]} 23. Nd6 {[%clk 0:00:48.4]} 23... Qc2 {[%clk
0:00:51.5]} 24. Qxb7 {[%clk 0:00:41.1]} 24... Qg6 {[%clk 0:00:32.9]} 25. Be4
{[%clk 0:00:26.4]} 25... Qh5 {[%clk 0:00:32.6]} 26. Qa6 {[%clk 0:00:21.1]} 26...
Bd7 {[%clk 0:00:22.8]} 27. Bxa8 {[%clk 0:00:20.7]} 27... Rxa8 {[%clk 0:00:23.7]}
28. Qb7 {[%clk 0:00:20.5]} 28... Rd8 {[%clk 0:00:24.1]} 29. Qe4 {[%clk
0:00:17.2]} 29... Qc5 {[%clk 0:00:16.4]} 30. Rec1 {[%clk 0:00:16.8]} 30... Qa5
{[%clk 0:00:16.1]} 31. Nb7 {[%clk 0:00:15.2]} 31... Qh5 {[%clk 0:00:14.4]} 32.
Nxd8 {[%clk 0:00:14.9]} 32... Bxd8 {[%clk 0:00:15.3]} 33. Qa8 {[%clk 0:00:10.3]}
33... Kh7 {[%clk 0:00:13.1]} 34. Qxd8 {[%clk 0:00:09.8]} 34... Bb5 {[%clk
0:00:12.5]} 35. Rxb5 {[%clk 0:00:07.1]} 35... Qxb5 {[%clk 0:00:11.5]} 36. Qd2
{[%clk 0:00:07.8]} 36... f5 {[%clk 0:00:11.8]} 37. Qc2 {[%clk 0:00:08.4]} 37...
a5 {[%clk 0:00:11.6]} 38. Qc4 {[%clk 0:00:07.5]} 38... Qb6 {[%clk 0:00:11.2]}
39. Be3 {[%clk 0:00:07.4]} 39... Qb7 {[%clk 0:00:11]} 40. Qxe6 {[%clk 0:00:07]}
40... Qf3 {[%clk 0:00:11.8]} 41. Qe5 {[%clk 0:00:03.2]} 41... a4 {[%clk
0:00:09.7]} 42. Qf4 {[%clk 0:00:03.9]} 42... Qe2 {[%clk 0:00:09.5]} 43. Qxa4
{[%clk 0:00:03.5]} 43... h5 {[%clk 0:00:08.7]} 44. Qc2 {[%clk 0:00:04.1]} 44...
Qf3 {[%clk 0:00:08.5]} 45. Qd1 {[%clk 0:00:04.6]} 45... Qb7 {[%clk 0:00:06.9]}
46. Qxh5+ {[%clk 0:00:04.6]} 46... Kg8 {[%clk 0:00:07.8]} 47. Qe8+ {[%clk
0:00:04.7]} 47... Kh7 {[%clk 0:00:08.1]} 48. Qc6 {[%clk 0:00:05.6]} 48... Qf7
{[%clk 0:00:07.8]} 49. Qc5 {[%clk 0:00:05.3]} 49... f4 {[%clk 0:00:07.1]} 50.
Bxf4 {[%clk 0:00:05.1]} 50... Qe6 {[%clk 0:00:07.5]} 51. Qe3 {[%clk 0:00:05.2]}
51... Qg4 {[%clk 0:00:06.7]} 52. Qd3+ {[%clk 0:00:04.7]} 52... g6 {[%clk
0:00:02.7]} 53. Rb1 {[%clk 0:00:05.1]} 53... Qc8 {[%clk 0:00:01.6]} 54. Rd1
{[%clk 0:00:04.5]} 54... Qe8 {[%clk 0:00:01.1]} 55. Qd7+ {[%clk 0:00:05]} 55...
Qxd7 {[%clk 0:00:01.6]} 56. Rxd7+ {[%clk 0:00:05.7]} 56... Kg8 {[%clk
0:00:01.6]} 57. Rd6 {[%clk 0:00:06.6]} 57... g5 {[%clk 0:00:02.5]} 58. Rg6+
{[%clk 0:00:07]} 58... Kh7 {[%clk 0:00:02.9]} 59. Rxg5 {[%clk 0:00:07.9]} 59...
Kh6 {[%clk 0:00:03.7]} 60. Ra5+ {[%clk 0:00:07.6]} 60... Kh7 {[%clk 0:00:04.6]}
61. h4 {[%clk 0:00:07.8]} 61... Kg6 {[%clk 0:00:05.2]} 62. h5+ {[%clk
0:00:08.4]} 62... Kh7 {[%clk 0:00:05.5]} 63. Ra7+ {[%clk 0:00:08.8]} 63... Kg8
{[%clk 0:00:06.4]} 64. h6 {[%clk 0:00:08.6]} 64... Kf8 {[%clk 0:00:06.6]} 65. h7
{[%clk 0:00:09.1]} 65... Ke8 {[%clk 0:00:06.9]} 66. h8=Q# {[%clk 0:00:09.5]} 1-0

[Event "Early-Titled-Tuesday-Blitz-March-19-2024"]
[Site "Chess.com"]
[Date "2024.03.19"]
[Round "8"]
[White "Vaibhavraut99"]
[Black "ketster"]
[Result "0-1"]
[WhiteElo "2700"]
[BlackElo "2578"]
[TimeControl "180+1"]
[EndTime "9:30:23 PDT"]
[Termination "ketster won by checkmate"]

1. e4 {[%clk 0:03:00.9]} 1... c5 {[%clk 0:03:00.1]} 2. Nf3 {[%clk 0:02:55.9]}
2... Nf6 {[%clk 0:03:00.3]} 3. e5 {[%clk 0:02:54.7]} 3... Nd5 {[%clk 0:03:00.5]}
4. d4 {[%clk 0:02:48.7]} 4... cxd4 {[%clk 0:02:54]} 5. c3 {[%clk 0:02:48.8]}
5... Nc6 {[%clk 0:02:43.9]} 6. cxd4 {[%clk 0:02:43.7]} 6... d6 {[%clk
0:02:43.1]} 7. exd6 {[%clk 0:02:32.2]} 7... e6 {[%clk 0:02:35.1]} 8. Bd3 {[%clk
0:02:30.3]} 8... Bxd6 {[%clk 0:02:35.2]} 9. a3 {[%clk 0:02:30.3]} 9... h6 {[%clk
0:02:35.2]} 10. O-O {[%clk 0:02:30.2]} 10... O-O {[%clk 0:02:35.5]} 11. Nc3
{[%clk 0:02:30.8]} 11... b6 {[%clk 0:02:26.3]} 12. Nxd5 {[%clk 0:02:25.9]} 12...
exd5 {[%clk 0:02:27.2]} 13. h3 {[%clk 0:02:23.9]} 13... Qf6 {[%clk 0:02:21.8]}
14. Be3 {[%clk 0:02:21.8]} 14... Bd7 {[%clk 0:02:19.1]} 15. Rc1 {[%clk
0:02:19.1]} 15... Rac8 {[%clk 0:02:17.8]} 16. Re1 {[%clk 0:02:18.6]} 16... Rfe8
{[%clk 0:02:15.3]} 17. b4 {[%clk 0:02:19.2]} 17... Ne7 {[%clk 0:02:11]} 18. Ne5
{[%clk 0:02:11.8]} 18... Bxe5 {[%clk 0:01:45.9]} 19. dxe5 {[%clk 0:02:10.1]}
19... Qxe5 {[%clk 0:01:44.1]} 20. Bxb6 {[%clk 0:02:01.3]} 20... Qb2 {[%clk
0:01:41.4]} 21. Bxa7 {[%clk 0:01:53.3]} 21... Qxa3 {[%clk 0:01:37.6]} 22. Rxc8
{[%clk 0:01:48.4]} 22... Rxc8 {[%clk 0:01:27.8]} 23. Rxe7 {[%clk 0:01:22.2]}
23... Rc1 {[%clk 0:01:22]} 24. Qxc1 {[%clk 0:01:13.7]} 24... Qxc1+ {[%clk
0:01:22.9]} 25. Kh2 {[%clk 0:01:03.9]} 25... Qc7+ {[%clk 0:01:20.7]} 26. f4
{[%clk 0:00:48.8]} 26... Qxa7 {[%clk 0:01:02.3]} 27. Bf5 {[%clk 0:00:47]} 27...
Qd4 {[%clk 0:00:45.8]} 28. Bxd7 {[%clk 0:00:41.9]} 28... Qxf4+ {[%clk
0:00:43.4]} 29. Kh1 {[%clk 0:00:42.2]} 29... Qxb4 {[%clk 0:00:32.1]} 30. Re8+
{[%clk 0:00:42.5]} 30... Kh7 {[%clk 0:00:31.9]} 31. Bf5+ {[%clk 0:00:38.7]}
31... g6 {[%clk 0:00:32]} 32. Bg4 {[%clk 0:00:38.9]} 32... Qd6 {[%clk
0:00:30.2]} 33. Ra8 {[%clk 0:00:33.9]} 33... d4 {[%clk 0:00:29.8]} 34. Ra7
{[%clk 0:00:34.2]} 34... Kg7 {[%clk 0:00:28.7]} 35. Rd7 {[%clk 0:00:34.4]} 35...
Qe5 {[%clk 0:00:24.8]} 36. Bf3 {[%clk 0:00:27.8]} 36... Kf8 {[%clk 0:00:18.7]}
37. Bd5 {[%clk 0:00:22.9]} 37... f5 {[%clk 0:00:18.6]} 38. Bf3 {[%clk
0:00:19.6]} 38... Qe3 {[%clk 0:00:18]} 39. Rd8+ {[%clk 0:00:10]} 39... Ke7
{[%clk 0:00:17.8]} 40. Rh8 {[%clk 0:00:09.1]} 40... d3 {[%clk 0:00:17.3]} 41.
Rh7+ {[%clk 0:00:10]} 41... Kf6 {[%clk 0:00:16.3]} 42. Rd7 {[%clk 0:00:09]}
42... d2 {[%clk 0:00:15.9]} 43. Kh2 {[%clk 0:00:09.7]} 43... g5 {[%clk
0:00:13.8]} 44. Rd6+ {[%clk 0:00:09.5]} 44... Ke7 {[%clk 0:00:13]} 45. Rd5
{[%clk 0:00:07.1]} 45... Qe1 {[%clk 0:00:09]} 46. Rxf5 {[%clk 0:00:02.3]} 46...
d1=Q {[%clk 0:00:07.3]} 47. Bxd1 {[%clk 0:00:02.7]} 47... Qxd1 {[%clk
0:00:08.2]} 48. Rf2 {[%clk 0:00:03.3]} 48... Qd6+ {[%clk 0:00:07.5]} 49. Kh1
{[%clk 0:00:03.9]} 49... Qd4 {[%clk 0:00:07.3]} 50. Rf3 {[%clk 0:00:04.3]} 50...
Ke6 {[%clk 0:00:06.8]} 51. Kh2 {[%clk 0:00:04.5]} 51... h5 {[%clk 0:00:06.9]}
52. Kh1 {[%clk 0:00:03]} 52... g4 {[%clk 0:00:07.1]} 53. hxg4 {[%clk 0:00:03.9]}
53... hxg4 {[%clk 0:00:08]} 54. Rg3 {[%clk 0:00:02.3]} 54... Kf5 {[%clk
0:00:05.8]} 55. Ra3 {[%clk 0:00:01.2]} 55... Qd1+ {[%clk 0:00:05.3]} 56. Kh2
{[%clk 0:00:01.7]} 56... Qd6+ {[%clk 0:00:05.9]} 57. Rg3 {[%clk 0:00:01.7]}
57... Kg5 {[%clk 0:00:06.3]} 58. Kh1 {[%clk 0:00:01.7]} 58... Qxg3 {[%clk
0:00:06.5]} 59. Kg1 {[%clk 0:00:02.6]} 59... Qe1+ {[%clk 0:00:06.9]} 60. Kh2
{[%clk 0:00:03.5]} 60... g3+ {[%clk 0:00:07]} 61. Kh3 {[%clk 0:00:04.4]} 61...
Kf4 {[%clk 0:00:07.3]} 62. Kh4 {[%clk 0:00:04.4]} 62... Qh1# {[%clk 0:00:08]}
0-1